bitfinex/quotes_ETHUSD_20230118
["timestamp","ask_amount","ask_price","bid_price","bid_amount"]
[1674021998147,31.78490208,1587.0,1586.9,0.03592108]
[1674021999038,35.56790208,1587.0,1586.9,0.03592108]
[1674021999424,37.21819664,1587.0,1586.9,0.03592108]
[1674021999849,40.92577019,1587.0,1586.9,0.03592108]
[1674022000828,33.10495621,1587.0,1586.9,0.03592108]
[1674022001044,32.46821448,1587.0,1586.9,0.03592108]
[1674022001575,20.15111718,1587.0,1586.9,0.03592108]
[1674022002307,26.45230718,1587.0,1586.9,0.03592108]
[1674022003114,24.11244097,1587.0,1586.9,0.03592108]
[1674022003303,22.97618231,1587.0,1586.9,0.03592108]
[1674022003552,23.96626938,1587.0,1586.9,0.03592108]
[1674022003875,23.30613559,1587.0,1586.9,0.03592108]
[1674022005124,26.47712589,1587.0,1586.9,0.03592108]
[1674022005312,27.94335161,1587.0,1586.9,0.03592108]
[1674022006154,26.62329748,1587.0,1586.9,0.03592108]
[1674022006354,24.11253577,1587.0,1586.9,0.03592108]
[1674022006569,23.30613559,1587.0,1586.9,0.03592108]
[1674022009009,24.27284438,1587.0,1586.9,0.03592108]
[1674022009554,25.26323512,1587.0,1586.9,0.03592108]
[1674022009722,23.94318099,1587.0,1586.9,0.03592108]
[1674022010143,27.39850097,1587.0,1586.9,0.03592108]
[1674022010388,27.54467256,1587.0,1586.9,0.03592108]
[1674022010596,30.54467256,1587.0,1586.9,0.03592108]
[1674022010987,31.86472669,1587.0,1586.9,0.03592108]
[1674022011730,30.54467256,1587.0,1586.9,0.03592108]
[1674022012881,29.90793083,1587.0,1586.9,0.03592108]
[1674022013715,30.54467256,1587.0,1586.9,0.03592108]
[1674022015438,31.86472669,1587.0,1586.9,0.03592108]
[1674022016967,31.22798496,1587.0,1586.9,0.03592108]
[1674022017174,29.90793083,1587.0,1586.9,0.03592108]
[1674022017446,31.22798496,1587.0,1586.9,0.03592108]
[1674022019705,30.23759422,1587.0,1586.9,0.03592108]
[1674022020148,31.22914581,1587.0,1586.9,0.03592108]
[1674022020369,31.22914592,1587.0,1586.9,0.03592108]
[1674022020652,30.23759422,1587.0,1586.9,0.03592108]
[1674022022820,30.23759422,1587.0,1586.9,0.03315386]
[1674022023324,31.88758733,1587.0,1586.9,0.03315386]
[1674022023484,32.52432906,1587.0,1586.9,0.03315386]
[1674022024955,30.5675332,1587.0,1586.9,0.03315386]
[1674022025171,31.8899217,1587.0,1586.9,0.03315386]
[1674022026693,30.5675332,1587.0,1586.9,0.03315386]
[1674022026848,31.84101666,1587.0,1586.9,0.03315386]
[1674022027394,31.20427493,1587.0,1586.9,0.03315386]
[1674022028418,36.10514993,1587.0,1586.9,0.03315386]
[1674022028683,31.92928182,1587.0,1586.9,0.03315386]
[1674022030833,31.29254009,1587.0,1586.9,0.03315386]
[1674022031042,31.92928182,1587.0,1586.9,0.02737316]
[1674022031477,33.90696301,1587.0,1586.9,0.02737316]
[1674022032539,31.92928182,1587.0,1586.9,0.02737316]
[1674022035176,45.92928182,1587.0,1586.9,0.02737316]
[1674022036156,53.42015682,1587.0,1586.9,0.02737316]
[1674022036365,56.59083801,1587.0,1586.9,0.02737316]
[1674022037746,64.90753801,1587.0,1586.9,0.02737316]
[1674022039520,64.90753801,1587.0,1586.9,0.00037316]
[1674022039746,1.0,1586.7,1586.6,0.07906851]
[1674022039964,32.40121332,1586.7,1586.6,0.07906851]
[1674022040274,36.18412664,1586.7,1586.6,0.07906851]
[1674022041094,36.24998109,1586.7,1586.6,0.07906851]
[1674022041306,37.57097235,1586.7,1586.6,0.07906851]
[1674022041532,41.02629233,1586.7,1586.6,0.07906851]
[1674022043272,39.37422308,1586.7,1586.6,0.07906851]
[1674022045111,43.15722308,1586.7,1586.6,0.07906851]
[1674022045843,46.86509808,1586.7,1586.6,0.07906851]
[1674022046052,48.51716733,1586.7,1586.6,0.07906851]
[1674022046572,4.783,1586.4,1586.2,0.12552619]
[1674022046761,53.00062814,1586.4,1586.2,0.12552619]
[1674022046934,49.36379973,1586.4,1586.2,0.12552619]
[1674022047148,49.03381594,1586.4,1586.2,0.12552619]
[1674022047354,47.88764435,1586.4,1586.2,0.12552619]
[1674022047568,47.9534988,1586.4,1586.2,0.05952619]
[1674022048472,47.29344983,1586.4,1586.2,0.05952619]
[1674022048830,47.9534988,1586.4,1586.2,0.05952619]
[1674022049989,46.7664988,1586.4,1586.2,0.05952619]
[1674022050200,46.10644983,1586.4,1586.2,0.05952619]
[1674022050585,32.10644983,1586.4,1586.2,0.05952619]
[1674022051043,32.7664988,1586.4,1586.2,0.05952619]
[1674022051253,32.10644983,1586.4,1586.2,0.05952619]
[1674022053415,32.7664988,1586.4,1586.2,0.05952619]
[1674022053726,33.57857795,1586.4,1586.2,0.05952619]
[1674022053880,32.74319156,1586.4,1586.2,0.05952619]
[1674022054090,31.62679852,1586.4,1586.2,0.05952619]
[1674022065249,32.28684749,1586.4,1586.2,0.05952619]
[1674022066103,32.46238911,1586.4,1586.2,0.05952619]
[1674022066444,32.46239112,1586.4,1586.2,0.05952619]
[1674022066633,32.46239112,1586.4,1586.3,0.08137705]
[1674022066846,36.18728482,1586.4,1586.3,0.08137705]
[1674022067380,40.96012377,1586.4,1586.3,0.08137705]
[1674022067696,46.37962132,1586.4,1586.3,0.08137705]
[1674022067905,46.70963224,1586.4,1586.3,0.08137705]
[1674022068117,61.34637397,1586.4,1586.3,0.08137705]
[1674022069763,62.99642857,1586.4,1586.3,0.06391025]
[1674022069958,57.64102126,1586.4,1586.3,0.06391025]
[1674022070193,61.34565328,1586.4,1586.3,0.06391025]
[1674022070749,60.70891155,1586.4,1586.3,0.06391025]
[1674022070964,58.63070272,1586.4,1586.3,0.06391025]
[1674022071114,57.64102126,1586.4,1586.3,0.06391025]
[1674022071750,55.49204878,1586.4,1586.3,0.06391025]
[1674022071959,56.15193565,1586.4,1586.3,0.06391025]
[1674022073060,54.95993565,1586.4,1586.3,0.06391025]
[1674022073277,54.30004878,1586.4,1586.3,0.06391025]
[1674022075460,55.62009246,1586.4,1586.3,0.06391025]
[1674022076271,54.63027953,1586.4,1586.3,0.06391025]
[1674022076475,56.28033413,1586.4,1586.3,0.06391025]
[1674022076904,54.63027953,1586.4,1586.3,0.06391025]
[1674022077848,56.28033413,1586.4,1586.3,0.06391025]
[1674022078219,54.63027953,1586.4,1586.3,0.06391025]
[1674022079289,56.28033413,1586.4,1586.3,0.06391025]
[1674022080052,56.28129223,1586.4,1586.3,0.06391025]
[1674022080372,56.15329045,1586.4,1586.3,0.06391025]
[1674022084638,56.79003218,1586.4,1586.3,0.06391025]
[1674022085547,55.13997758,1586.4,1586.3,0.06391025]
[1674022085758,58.84390054,1586.4,1586.3,0.06391025]
[1674022085969,55.13997758,1586.4,1586.3,0.06391025]
[1674022086197,55.13997758,1586.4,1586.3,0.05020161]
[1674022086414,60.82674481,1586.4,1586.3,0.05020161]
[1674022086590,55.13997758,1586.4,1586.3,0.05020161]
[1674022086778,58.84354273,1586.4,1586.3,0.05020161]
[1674022086984,60.82602584,1586.4,1586.3,0.05020161]
[1674022087364,55.13997758,1586.4,1586.3,0.05020161]
[1674022087514,58.84354178,1586.4,1586.3,0.05020161]
[1674022087723,60.82602489,1586.4,1586.3,0.05020161]
[1674022087929,57.12246069,1586.4,1586.3,0.05020161]
[1674022088157,55.13997758,1586.4,1586.3,0.05020161]
[1674022088413,60.82818028,1586.4,1586.3,0.05020161]
[1674022088722,55.13997758,1586.4,1586.3,0.05020161]
[1674022088934,56.32397758,1586.4,1586.3,0.05020161]
[1674022089096,60.02933817,1586.4,1586.3,0.05020161]
[1674022089686,57.97557049,1586.4,1586.3,0.05020161]
[1674022094941,56.78257049,1586.4,1586.3,0.05020161]
[1674022095083,56.14582876,1586.4,1586.3,0.05020161]
[1674022098661,56.14356217,1586.4,1586.3,0.05020161]
[1674022099863,56.7803039,1586.4,1586.3,0.05020161]
[1674022100081,56.78103382,1586.4,1586.3,0.05020161]
[1674022100440,55.12871099,1586.4,1586.3,0.05020161]
[1674022102382,56.78101085,1586.4,1586.3,0.05020161]
[1674022102597,56.78088321,1586.4,1586.3,0.05020161]
[1674022103122,56.32171099,1586.4,1586.3,0.05020161]
[1674022104049,56.32171099,1586.4,1586.3,0.03944786]
[1674022105175,58.3041941,1586.4,1586.3,0.03944786]
[1674022105957,56.32171099,1586.4,1586.3,0.03944786]
[1674022106152,60.02530104,1586.4,1586.3,0.03944786]
[1674022106362,62.00815587,1586.4,1586.3,0.03944786]
[1674022107956,3.783,1586.2,1586.1,0.06736321]
[1674022108167,54.89785666,1586.2,1586.1,0.06736321]
[1674022108318,59.41230201,1586.2,1586.1,0.06736321]
[1674022109420,57.42954942,1586.2,1586.1,0.06736321]
[1674022109635,59.41230201,1586.2,1586.1,0.06736321]
[1674022109914,62.86762199,1586.2,1586.1,0.06736321]
[1674022110451,60.8848694,1586.2,1586.1,0.06736321]
[1674022110600,60.24812767,1586.2,1586.1,0.06736321]
[1674022110807,62.23088026,1586.2,1586.1,0.06736321]
[1674022111017,62.86762199,1586.2,1586.1,0.06736321]
[1674022112341,1.0,1586.1,1585.8,0.12199812]
[1674022112511,30.18179686,1585.9,1585.8,0.12199812]
[1674022112705,30.58934049,1585.9,1585.8,0.12199812]
[1674022113628,29.40634049,1585.9,1585.8,0.12199812]
[1674022114393,29.40496823,1585.9,1585.8,0.12199812]
[1674022116866,35.10533613,1585.9,1585.8,0.12199812]
[1674022117020,34.44540334,1585.9,1585.8,0.12199812]
[1674022117552,35.63840334,1585.9,1585.8,0.12199812]
[1674022118235,38.63840334,1585.9,1585.8,0.12199812]
[1674022119592,38.96836974,1585.9,1585.8,0.12199812]
[1674022120416,39.95712252,1585.9,1585.8,0.12199812]
[1674022120601,38.63725694,1585.9,1585.8,0.12199812]
[1674022121019,39.2964518,1585.9,1585.8,0.12199812]
[1674022121230,38.30769902,1585.9,1585.8,0.12199812]
[1674022121691,38.31955347,1585.9,1585.8,0.12199812]
[1674022121902,38.37155347,1585.9,1585.8,0.12199812]
[1674022122703,38.37147267,1585.9,1585.8,0.12199812]
[1674022122914,37.17847267,1585.9,1585.8,0.12199812]
[1674022125119,37.0043821,1585.9,1585.8,0.12199812]
[1674022125325,25.75835338,1585.9,1585.8,0.12199812]
[1674022125599,25.09915852,1585.9,1585.8,0.12199812]
[1674022127004,25.32915852,1585.9,1585.8,0.12199812]
[1674022128055,25.98835338,1585.9,1585.8,0.12199812]
[1674022128904,30.28118931,1585.9,1585.8,0.12199812]
[1674022129123,34.66397801,1585.9,1585.8,0.12199812]
[1674022131137,35.98384359,1585.9,1585.8,0.12199812]
[1674022131546,34.66397801,1585.9,1585.8,0.12199812]
[1674022132885,35.98384359,1585.9,1585.8,0.12199812]
[1674022133103,35.84897801,1585.9,1585.8,0.12199812]
[1674022133734,37.16884359,1585.9,1585.8,0.12199812]
[1674022134484,35.84897801,1585.9,1585.8,0.12199812]
[1674022134680,37.16884359,1585.9,1585.8,0.12199812]
[1674022134891,35.84897801,1585.9,1585.8,0.12199812]
[1674022135346,36.50796424,1585.9,1585.8,0.12199812]
[1674022135675,35.84897801,1585.9,1585.8,0.12199812]
[1674022135989,35.84897801,1585.9,1585.8,0.11959565]
[1674022136166,36.18009081,1585.9,1585.8,0.11959565]
[1674022136516,37.1686463,1585.9,1585.8,0.11959565]
[1674022138690,36.18009081,1585.9,1585.8,0.11959565]
[1674022139250,37.16890118,1585.9,1585.8,0.11959565]
[1674022139404,37.16890478,1585.9,1585.8,0.11959565]
[1674022139880,36.18009081,1585.9,1585.8,0.11959565]
[1674022142278,37.82936164,1585.9,1585.8,0.11959565]
[1674022142616,36.17952967,1585.9,1585.8,0.11959565]
[1674022142766,37.82936164,1585.9,1585.8,0.11959565]
[1674022144136,36.5100572,1585.9,1585.8,0.11959565]
[1674022144609,46.84670033,1585.9,1585.8,0.29466494]
[1674022144919,25.22704,1585.6,1585.5,0.12995272]
[1674022145134,28.57366407,1585.6,1585.5,0.12995272]
[1674022146468,29.23366329,1585.6,1585.5,0.12995272]
[1674022147711,29.23551774,1585.6,1585.5,0.12995272]
[1674022147926,29.29951774,1585.6,1585.5,0.12995272]
[1674022148397,22.99275774,1585.6,1585.5,0.12995272]
[1674022148621,22.33275852,1585.6,1585.5,0.12995272]
[1674022149874,22.99275774,1585.6,1585.5,0.12995272]
[1674022151006,22.33275852,1585.6,1585.5,0.12995272]
[1674022152670,22.99275774,1585.6,1585.5,0.12995272]
[1674022152882,22.33275852,1585.6,1585.5,0.12995272]
[1674022155076,9.71923852,1585.6,1585.5,1.32295272]
[1674022155288,16.02599852,1585.6,1585.5,1.32295272]
[1674022157387,16.02599852,1585.6,1585.5,1.57394799]
[1674022162169,9.71923852,1585.6,1585.5,1.57394799]
[1674022163088,3.41247852,1585.6,1585.5,1.57394799]
[1674022163948,3.41247852,1585.6,1585.5,2.66924993]
[1674022164177,3.18247852,1585.6,1585.5,3.86224993]
[1674022165480,3.11662407,1585.6,1585.5,3.86224993]
[1674022166325,0.06585445,1585.7,1585.5,10.16939993]
[1674022166583,3.18247852,1585.7,1585.6,2.75922499]
[1674022166750,3.18247852,1585.7,1585.6,2.75707377]
[1674022171161,3.18247852,1585.7,1585.6,3.85228404]
[1674022172030,0.06585445,1585.7,1585.6,5.04528404]
[1674022172222,0.06585445,1585.7,1585.6,6.04528404]
[1674022172438,0.06585445,1585.7,1585.6,5.04528404]
[1674022173386,6.37133445,1586.0,1585.6,11.41804404]
[1674022173571,3.34662407,1585.9,1585.8,1.193]
[1674022176148,3.34662407,1585.9,1585.7,2.3348044]
[1674022176363,3.11662407,1585.8,1585.7,2.3348044]
[1674022179357,3.11662407,1585.8,1585.7,1.193]
[1674022187170,3.11662407,1585.8,1585.7,7.49936]
[1674022188338,0.29585445,1585.9,1585.7,7.49936]
[1674022188339,0.06585445,1585.9,1585.7,7.49936]
[1674022188564,3.18247852,1585.9,1585.8,1.193]
[1674022189218,3.18247852,1585.9,1585.8,1.19020026]
[1674022197308,17.03836429,1585.9,1585.7,1.19]
[1674022197634,3.34662407,1585.8,1585.7,1.19]
[1674022197951,9.65258407,1585.8,1585.7,1.19]
[1674022201306,9.71843852,1585.8,1585.7,1.19]
[1674022201715,9.71843852,1585.8,1585.6,10.8947]
[1674022202036,3.11662407,1585.7,1585.6,10.8947]
[1674022202847,3.11662407,1585.7,1585.6,0.066]
[1674022205284,11.91544014,1585.7,1585.6,0.066]
[1674022205617,18.22180014,1585.7,1585.6,0.066]
[1674022206189,17.56180092,1585.7,1585.6,0.066]
[1674022207028,17.62765537,1585.7,1585.5,0.12995272]
[1674022207251,3.34662407,1585.6,1585.5,0.12995272]
[1674022207903,3.34662407,1585.6,1585.5,1.42295272]
[1674022208116,0.06585445,1585.7,1585.5,1.90684799]
[1674022208333,0.06585445,1585.7,1585.5,3.08784799]
[1674022208334,3.11662407,1585.7,1585.5,3.08784799]
[1674022209505,3.11662407,1585.7,1585.5,9.39499799]
[1674022209716,3.11662407,1585.7,1585.5,9.46099799]
[1674022209887,3.11662407,1585.7,1585.5,9.31210272]
[1674022212366,3.11662407,1585.7,1585.5,9.30926128]
[1674022216360,3.08662407,1585.7,1585.5,9.30926128]
[1674022221565,3.08662407,1585.7,1585.5,8.12826128]
[1674022222345,0.06585445,1585.8,1585.6,1.09523387]
[1674022222520,3.18247852,1585.8,1585.7,1.73752339]
[1674022223446,3.11662407,1585.8,1585.7,1.73752339]
[1674022225972,0.06585445,1585.9,1585.7,17.29607364]
[1674022226182,0.06585445,1585.9,1585.8,3.47611648]
[1674022226425,0.06585445,1585.9,1585.8,11.13280336]
[1674022226638,0.06585445,1585.9,1585.8,8.75180336]
[1674022231187,14.86633367,1586.2,1585.8,8.81780336]
[1674022231337,3.34662407,1586.1,1585.8,6.37196]
[1674022231538,3.11662407,1586.0,1585.8,6.37196]
[1674022231998,3.11662407,1585.9,1585.8,0.066]
[1674022233282,0.23,1586.1,1585.8,7.99996]
[1674022233508,3.11662407,1586.0,1585.8,7.99996]
[1674022233655,3.11662407,1586.0,1585.9,0.799996]
[1674022234012,3.11662407,1586.0,1585.8,7.66496]
[1674022235766,0.06585445,1586.2,1585.8,7.66496]
[1674022235974,0.06585445,1586.2,1585.9,1.09490899]
[1674022236197,0.06585445,1586.2,1586.0,12.61034]
[1674022236629,0.05984754,1586.4,1586.0,18.98151]
[1674022236959,0.05984754,1586.4,1586.1,8.202811]
[1674022236960,3.17647161,1586.4,1586.1,8.202811]
[1674022238416,3.17647161,1586.4,1586.1,8.198901]
[1674022240635,3.17647161,1586.4,1586.1,6.30466]
[1674022242386,3.11662407,1586.3,1586.0,16.90267]
[1674022242610,3.11662407,1586.2,1586.0,10.5975]
[1674022243744,3.11662407,1586.1,1586.0,0.066]
[1674022243994,3.54668648,1586.1,1586.0,0.066]
[1674022244617,3.11662407,1586.1,1586.0,0.066]
[1674022245520,3.11662407,1586.1,1586.0,0.056]
[1674022245776,3.11662407,1586.1,1585.8,6.3717]
[1674022252244,4.11662407,1586.1,1585.8,6.3717]
[1674022252401,3.11662407,1586.1,1585.8,6.3717]
[1674022252611,4.11662407,1586.1,1585.8,6.3717]
[1674022252823,3.11662407,1586.1,1585.8,6.3717]
[1674022259102,4.11662407,1586.1,1585.8,6.3717]
[1674022259468,3.11662407,1586.0,1585.8,0.066]
[1674022259735,3.34662407,1585.9,1585.8,0.066]
[1674022259890,10.83918407,1585.9,1585.8,0.066]
[1674022261066,10.55028407,1585.9,1585.8,0.066]
[1674022263012,9.36328407,1585.9,1585.8,0.066]
[1674022266126,9.42913852,1585.9,1585.5,37.84936128]
[1674022266337,3.11662407,1585.8,1585.5,41.75359741]
[1674022268948,3.11662407,1585.7,1585.5,29.13929741]
[1674022269483,3.11662407,1585.7,1585.5,10.40429741]
[1674022269697,3.11662407,1585.7,1585.5,6.50006128]
[1674022270264,3.11662407,1585.7,1585.5,0.19311128]
[1674022270265,3.11662407,1585.6,1585.5,0.19311128]
[1674022271256,4.53962407,1585.6,1585.5,0.19311128]
[1674022271804,10.84638407,1585.6,1585.5,0.19311128]
[1674022272026,13.19232748,1585.6,1585.5,0.19311128]
[1674022272221,19.49908748,1585.6,1585.5,0.19311128]
[1674022274833,18.37194193,1585.6,1585.5,0.12711128]
[1674022275618,26.10870193,1585.6,1585.5,0.12711128]
[1674022278641,26.10870193,1585.6,1585.5,0.46143513]
[1674022280624,29.81657693,1585.6,1585.5,0.46143513]
[1674022280839,26.10870193,1585.6,1585.5,0.46143513]
[1674022281294,26.10870193,1585.6,1585.5,0.45935762]
[1674022293470,26.10666107,1585.6,1585.5,0.45935762]
[1674022297905,11.14719766,1585.6,1585.5,0.45935762]
[1674022300375,12.10319766,1585.6,1585.5,0.45935762]
[1674022300676,18.40995766,1585.6,1585.5,0.45935762]
[1674022300993,19.06995688,1585.6,1585.5,0.45935762]
[1674022301211,33.85746293,1585.6,1585.5,0.45935762]
[1674022301364,43.82545154,1585.6,1585.5,5.762e-05]
[1674022301759,1.38824243,1585.4,1585.3,0.08814712]
[1674022301882,41.89623049,1585.4,1585.3,0.08814712]
[1674022302097,45.06561848,1585.4,1585.3,0.08814712]
[1674022302344,46.05368946,1585.4,1585.3,0.08814712]
[1674022302622,49.30089324,1585.4,1585.3,0.08814712]
[1674022302990,48.64217925,1585.4,1585.3,0.08814712]
[1674022303614,48.64169655,1585.4,1585.3,0.08814712]
[1674022303774,53.74257645,1585.4,1585.3,0.08814712]
[1674022305246,53.74259496,1585.4,1585.3,0.08814712]
[1674022305666,57.43531118,1585.4,1585.3,0.08814712]
[1674022305931,63.62221433,1585.4,1585.3,0.08814712]
[1674022307305,65.33790075,1585.4,1585.3,0.08814712]
[1674022307669,63.68759429,1585.4,1585.3,0.08814712]
[1674022308618,65.33742626,1585.4,1585.3,0.08814712]
[1674022309359,59.99487807,1585.4,1585.3,0.08814712]
[1674022309574,53.80689929,1585.4,1585.3,0.08814712]
[1674022310223,57.49889375,1585.4,1585.3,0.08814712]
[1674022311240,52.49098394,1585.4,1585.3,0.08814712]
[1674022311664,56.18261754,1585.4,1585.3,0.08814712]
[1674022311926,52.49098394,1585.4,1585.3,0.08814712]
[1674022313278,56.18189579,1585.4,1585.3,0.08814712]
[1674022315289,52.49098394,1585.4,1585.3,0.08814712]
[1674022315506,56.18225629,1585.4,1585.3,0.08814712]
[1674022315882,52.49098394,1585.4,1585.3,0.08814712]
[1674022316554,56.18261411,1585.4,1585.3,0.06983397]
[1674022318306,56.18225162,1585.4,1585.3,0.06983397]
[1674022318648,57.49816697,1585.4,1585.3,0.06983397]
[1674022318866,56.18225162,1585.4,1585.3,0.06983397]
[1674022319185,52.49098394,1585.4,1585.3,0.06983397]
[1674022319355,50.9735723,1585.4,1585.3,0.06983397]
[1674022319925,51.30298394,1585.4,1585.3,0.06983397]
[1674022320279,51.96072636,1585.4,1585.3,0.06983397]
[1674022320490,51.30298394,1585.4,1585.3,0.06983397]
[1674022321592,51.96075917,1585.4,1585.3,0.06983397]
[1674022321967,51.30298394,1585.4,1585.3,0.06983397]
[1674022322172,29.98172262,1585.4,1585.3,0.06983397]
[1674022322433,22.43037095,1585.4,1585.3,0.06983397]
[1674022323168,24.27610963,1585.4,1585.3,0.06983397]
[1674022323671,27.27610963,1585.4,1585.3,0.06983397]
[1674022323898,26.61837095,1585.4,1585.3,0.06983397]
[1674022329436,9.81527095,1585.4,1585.3,1.69783397]
[1674022329646,3.27772095,1585.4,1585.3,1.86761737]
[1674022330658,0.16109688,1585.4,1585.3,3.05961737]
[1674022331745,0.09524243,1585.4,1585.3,3.05961737]
[1674022334796,0.09524243,1585.4,1585.3,9.36756737]
[1674022335796,0.09524243,1585.4,1585.3,15.67551737]
[1674022336011,0.09524243,1585.4,1585.3,15.72751737]
[1674022336232,0.09524243,1585.4,1585.3,15.74151737]
[1674022339448,0.09524243,1585.4,1585.3,9.43356737]
[1674022342386,3.2118665,1585.4,1585.3,1.32783397]
[1674022343039,3.2118665,1585.4,1585.3,0.13583397]
[1674022344178,9.5194165,1585.4,1585.3,0.13583397]
[1674022344507,16.0569665,1585.4,1585.3,0.13583397]
[1674022344850,24.61673015,1585.4,1585.3,0.13328476]
[1674022347324,24.6825846,1585.4,1585.3,0.06728476]
[1674022352577,25.34032328,1585.4,1585.3,0.06728476]
[1674022352788,24.6825846,1585.4,1585.3,0.06728476]
[1674022353374,25.34032328,1585.4,1585.3,0.06728476]
[1674022354043,27.0705846,1585.4,1585.3,0.06728476]
[1674022354258,25.8735846,1585.4,1585.3,0.06728476]
[1674022359253,13.2584846,1585.4,1585.3,0.06728476]
[1674022359561,9.81527095,1585.4,1585.3,0.06728476]
[1674022361553,3.50772095,1585.4,1585.3,0.06728476]
[1674022363012,3.27772095,1585.4,1585.3,0.06728476]
[1674022367289,3.2118665,1585.4,1585.3,0.06728476]
[1674022367742,16.71470518,1585.4,1585.3,0.06364669]
[1674022367949,19.22403614,1585.4,1585.3,0.06364669]
[1674022368366,27.45713447,1585.4,1585.3,0.06364669]
[1674022370371,1.3061799,1585.2,1585.1,0.066]
[1674022370548,25.80190477,1585.2,1585.1,0.066]
[1674022370751,26.60991229,1585.2,1585.1,0.064]
[1674022370965,1.0,1585.1,1585.0,0.14874712]
[1674022371226,24.70287407,1585.1,1585.0,0.14874712]
[1674022372382,25.36200688,1585.1,1585.0,0.14874712]
[1674022372605,28.7131819,1585.1,1585.0,0.14874712]
[1674022373117,28.05404909,1585.1,1585.0,0.14874712]
[1674022374413,28.11990354,1585.1,1585.0,0.14874712]
[1674022375814,28.77903635,1585.1,1585.0,0.14874712]
[1674022376503,31.948327,1585.1,1585.0,0.14874712]
[1674022377338,31.77903635,1585.1,1585.0,0.14874712]
[1674022377776,31.94830604,1585.1,1585.0,0.14874712]
[1674022378077,31.77903635,1585.1,1585.0,0.14874712]
[1674022380185,31.94831206,1585.1,1585.0,0.14874712]
[1674022380340,31.77903635,1585.1,1585.0,0.14874712]
[1674022380569,31.94837447,1585.1,1585.0,0.14874712]
[1674022381263,32.93707368,1585.1,1585.0,0.14874712]
[1674022381458,31.77903635,1585.1,1585.0,0.14874712]
[1674022382003,31.94840187,1585.1,1585.0,0.14874712]
[1674022382598,31.77903635,1585.1,1585.0,0.14874712]
[1674022383006,30.11990354,1585.1,1585.0,0.14874712]
[1674022383216,28.68990354,1585.1,1585.0,0.14874712]
[1674022385420,29.51828964,1585.1,1585.0,0.14874712]
[1674022385636,30.50698885,1585.1,1585.0,0.14874712]
[1674022385977,31.93098885,1585.1,1585.0,0.14874712]
[1674022386189,35.71398885,1585.1,1585.0,0.14874712]
[1674022386382,35.69159777,1585.1,1585.0,0.14874712]
[1674022386593,39.38251831,1585.1,1585.0,0.14874712]
[1674022386807,46.99731831,1585.1,1585.0,0.14874712]
[1674022386996,43.30639777,1585.1,1585.0,0.14874712]
[1674022387337,1.0,1585.0,1584.9,0.12858036]
[1674022387541,49.3548837,1585.0,1584.9,0.12858036]
[1674022387851,53.02400029,1585.0,1584.9,0.12858036]
[1674022388462,49.99164973,1585.0,1584.9,0.12858036]
[1674022388673,49.06977546,1585.0,1584.9,0.12858036]
[1674022388990,48.90052217,1585.0,1584.9,0.12858036]
[1674022389275,48.24231321,1585.0,1584.9,0.12858036]
[1674022389570,45.11752217,1585.0,1584.9,0.12858036]
[1674022389932,44.45931321,1585.0,1584.9,0.12858036]
[1674022391634,48.24231321,1585.0,1584.9,0.12858036]
[1674022394381,44.45931321,1585.0,1584.9,0.12858036]
[1674022395558,47.24231321,1585.0,1584.9,0.12858036]
[1674022397149,46.60557148,1585.0,1584.9,0.12858036]
[1674022397357,47.24231321,1585.0,1584.9,0.12858036]
[1674022400208,43.45931321,1585.0,1584.9,0.12858036]
[1674022400615,41.39257148,1585.0,1584.9,0.12858036]
[1674022405048,42.21938784,1585.0,1584.9,0.12858036]
[1674022405278,42.5489076,1585.0,1584.9,0.12858036]
[1674022405605,43.20754584,1585.0,1584.9,0.12858036]
[1674022407236,42.5489076,1585.0,1584.9,0.12858036]
[1674022407994,43.20804851,1585.0,1584.9,0.12858036]
[1674022408803,43.20804851,1585.0,1584.9,0.12515544]
[1674022409254,42.5489076,1585.0,1584.9,0.12515544]
[1674022410678,42.8794445,1585.0,1584.9,0.12515544]
[1674022411992,43.86883227,1585.0,1584.9,0.12515544]
[1674022414470,42.55056665,1585.0,1584.9,0.12515544]
[1674022415824,43.86883227,1585.0,1584.9,0.12515544]
[1674022417350,42.55056665,1585.0,1584.9,0.12515544]
[1674022417662,43.86883227,1585.0,1584.9,0.12515544]
[1674022418841,42.55056665,1585.0,1584.9,0.12515544]
[1674022419149,28.55056665,1585.0,1584.9,0.12515544]
[1674022419301,26.49789369,1585.0,1584.9,0.12515544]
[1674022420181,27.15770358,1585.0,1584.9,0.12515544]
[1674022420377,27.81615931,1585.0,1584.9,0.12515544]
[1674022420600,26.49789369,1585.0,1584.9,0.12515544]
[1674022422445,27.81615931,1585.0,1584.9,0.12515544]
[1674022422657,30.83684782,1585.0,1584.9,0.12515544]
[1674022423250,32.15511344,1585.0,1584.9,0.12515544]
[1674022423603,30.83684782,1585.0,1584.9,0.12515544]
[1674022423978,32.15511344,1585.0,1584.9,0.12515544]
[1674022424282,30.83684782,1585.0,1584.9,0.12515544]
[1674022424511,32.15511344,1585.0,1584.9,0.12515544]
[1674022425509,31.16572567,1585.0,1584.9,0.12515544]
[1674022426071,32.15595285,1585.0,1584.9,0.12515544]
[1674022426226,26.4987331,1585.0,1584.9,0.12515544]
[1674022426441,27.15889821,1585.0,1584.9,0.12515544]
[1674022426758,27.81699872,1585.0,1584.9,0.12515544]
[1674022426970,26.4987331,1585.0,1584.9,0.12515544]
[1674022427647,27.81699872,1585.0,1584.9,0.12515544]
[1674022427858,33.67483679,1585.0,1584.9,0.12515544]
[1674022430274,32.68460961,1585.0,1584.9,0.12515544]
[1674022431418,33.67492245,1585.0,1584.9,0.12515544]
[1674022432541,33.67492245,1585.0,1584.9,0.12299662]
[1674022433960,14.74750245,1585.0,1584.9,0.12299662]
[1674022434482,27.36578245,1585.0,1584.9,0.12299662]
[1674022435447,33.67492245,1585.0,1584.9,0.12299662]
[1674022436604,34.6653138,1585.0,1584.9,0.12299662]
[1674022436755,33.34704818,1585.0,1584.9,0.12299662]
[1674022436964,34.6653138,1585.0,1584.9,0.12299662]
[1674022437435,33.34704818,1585.0,1584.9,0.12299662]
[1674022441861,34.6653138,1585.0,1584.9,0.12299662]
[1674022445745,34.6653138,1585.0,1584.9,0.48584013]
[1674022446320,36.31514577,1585.0,1584.9,0.48584013]
[1674022447579,34.99688015,1585.0,1584.9,0.48584013]
[1674022447793,36.3176714,1585.0,1584.9,0.48584013]
[1674022448614,37.5056714,1585.0,1584.9,0.48584013]
[1674022448803,37.68858116,1585.0,1584.9,0.48584013]
[1674022450657,39.33902095,1585.0,1584.9,0.48584013]
[1674022455039,38.15102095,1585.0,1584.9,0.48584013]
[1674022455250,38.15102095,1585.0,1584.9,0.48240897]
[1674022455441,37.51427922,1585.0,1584.9,0.48240897]
[1674022456278,38.83463818,1585.0,1584.9,0.48240897]
[1674022456638,38.83465168,1585.0,1584.9,0.48240897]
[1674022458727,38.17469669,1585.0,1584.9,0.48240897]
[1674022458941,29.80047039,1585.0,1584.9,0.48240897]
[1674022459260,30.46081305,1585.0,1584.9,0.48240897]
[1674022459627,29.80047039,1585.0,1584.9,0.48240897]
[1674022460527,30.13037382,1585.0,1584.9,0.48240897]
[1674022461634,31.78081361,1585.0,1584.9,0.48240897]
[1674022461962,36.91302414,1585.0,1584.9,0.48240897]